Workbook

Sheet 汇总表 (对外公示)
A1: 南宁市第二人民医院2025年公开考试招聘工作人员 面试成绩公布表
A2: 2025-06-15
A3: 招聘单位 | B3: 招聘岗位名称 | C3: 招聘人数(核减后) | D3: 岗位编码 | E3: 考生姓名 | F3: 性别 | G3: 民族 | H3: 面试成绩 | L3: 咨询电话
H4: 结构化面试 | I4: 专业能力测试 | J4: 总成绩 | K4: 排名
A5: 南宁市第二人民医院 | B5: 主管护师（聘用人员控制数） | C5: 8 | D5: 1450100212 | E5: 麻彩音 | F5: 女 | G5: 壮族 | H5: 79.40 | I5: 82.00 | J5: =H5*0.5+I5*0.5 -> 80.70 | K5: 1 | L5: 07714808015
E6: 梁雪妹 | F6: 女 | G6: 壮族 | H6: 78.00 | I6: 79.00 | J6: =H6*0.5+I6*0.5 -> 78.50 | K6: 2
E7: 刘秋霞 | F7: 女 | G7: 汉族 | H7: 80.40 | I7: 74.00 | J7: 77.20 | K7: 3
E8: 钟婉 | F8: 女 | G8: 汉族 | H8: 74.00 | I8: 78.20 | J8: 76.10 | K8: 4
E9: 梁芳媛 | F9: 女 | G9: 壮族 | H9: 82.40 | I9: 69.80 | J9: 76.10 | K9: 4
E10: 黎燕群 | F10: 女 | G10: 汉族 | H10: 75.00 | I10: 76.40 | J10: 75.70 | K10: 6
E11: 黄彩菲 | F11: 女 | G11: 壮族 | H11: 75.60 | I11: 74.60 | J11: 75.10 | K11: 7
E12: 谢晓敏 | F12: 女 | G12: 壮族 | H12: 76.60 | I12: 72.00 | J12: 74.30 | K12: 8
E13: 石林川 | F13: 女 | G13: 壮族 | H13: 76.60 | I13: 72.00 | J13: 74.30 | K13: 8
E14: 卢军 | F14: 女 | G14: 壮族 | H14: 78.00 | I14: 70.40 | J14: 74.20 | K14: 10
E15: 张秋露 | F15: 女 | G15: 汉族 | H15: 78.00 | I15: 69.80 | J15: 73.90 | K15: 11
E16: 雷秋连 | F16: 女 | G16: 汉族 | H16: 71.40 | I16: 74.40 | J16: =H16*0.5+I16*0.5 -> 72.90 | K16: 12
E17: 徐苓珍 | F17: 女 | G17: 汉族 | H17: 75.80 | I17: 70.00 | J17: 72.90 | K17: 12
E18: 何爱西 | F18: 女 | G18: 壮族 | H18: 71.60 | I18: 73.60 | J18: 72.60 | K18: 14
E19: 蒙素华 | F19: 女 | G19: 壮族 | H19: 74.20 | I19: 71.00 | J19: 72.60 | K19: 14
E20: 滕健 | F20: 女 | G20: 汉族 | H20: 74.60 | I20: 69.00 | J20: 71.80 | K20: 16
E21: 农芳艳 | F21: 女 | G21: 壮族 | H21: 72.40 | I21: 71.00 | J21: =H21*0.5+I21*0.5 -> 71.70 | K21: 17
E22: 陈晓通 | F22: 女 | G22: 汉族 | H22: 75.60 | I22: 66.60 | J22: 71.10 | K22: 18
E23: 陈玉军 | F23: 女 | G23: 汉族 | H23: 66.80 | I23: 无 | J23: =H23*0.5 -> 33.40 | K23: 19
E24: 蓝健 | F24: 女 | G24: 瑶族 | H24: 68.60 | I24: 无 | J24: =H24*0.5 -> 34.30 | K24: 20
E25: 刘丽萍 | F25: 女 | G25: 汉族 | H25: 68.00 | I25: 无 | J25: =H25*0.5 -> 34.00 | K25: 21
E26: 马菊连 | F26: 女 | G26: 壮族 | H26: 46.60 | I26: 无 | J26: =H26*0.5 -> 23.30 | K26: 22
E27: 卢鸣赧 | F27: 女 | G27: 壮族 | H27: 缺考 | I27: 无 | J27: 无 | K27: 23
E28: 植月林 | F28: 女 | G28: 汉族 | H28: 缺考 | I28: 无 | J28: 无 | K28: 23
B29: 护师二（聘用人员控制数） | C29: 8 | D29: 1450100213 | E29: 莫灵清 | F29: 女 | G29: 壮族 | H29: 84.60 | I29: 79.60 | J29: =H29*0.5+I29*0.5 -> 82.10 | K29: 1
E30: 梁雨怡 | F30: 女 | G30: 汉族 | H30: 86.40 | I30: 76.40 | J30: =H30*0.5+I30*0.5 -> 81.40 | K30: 2
E31: 阮海潜 | F31: 男 | G31: 汉族 | H31: 79.60 | I31: 79.00 | J31: 79.30 | K31: 3
E32: 高爽 | F32: 女 | G32: 满族 | H32: 84.60 | I32: 73.60 | J32: 79.10 | K32: 4
E33: 李兰 | F33: 女 | G33: 汉族 | H33: 80.80 | I33: 77.20 | J33: 79.00 | K33: 5
E34: 颜锦秀 | F34: 女 | G34: 汉族 | H34: 76.20 | I34: 79.00 | J34: 77.60 | K34: 6
E35: 欧虹辛 | F35: 女 | G35: 壮族 | H35: 76.00 | I35: 78.00 | J35: 77.00 | K35: 7
E36: 黄丽葵 | F36: 女 | G36: 壮族 | H36: 81.00 | I36: 72.40 | J36: 76.70 | K36: 8
E37: 梁子凌 | F37: 女 | G37: 汉族 | H37: 77.60 | I37: 75.80 | J37: 76.70 | K37: 8
E38: 李玉群 | F38: 女 | G38: 壮族 | H38: 76.80 | I38: 74.60 | J38: 75.70 | K38: 10
E39: 陈秋明 | F39: 女 | G39: 汉族 | H39: 72.80 | I39: 76.00 | J39: 74.40 | K39: 11
E40: 刘秀枝 | F40: 女 | G40: 汉族 | H40: 73.00 | I40: 75.40 | J40: 74.20 | K40: 12
E41: 梁冰 | F41: 女 | G41: 汉族 | H41: 72.20 | I41: 74.40 | J41: 73.30 | K41: 13
E42: 梁朝燊 | F42: 男 | G42: 汉族 | H42: 72.60 | I42: 72.80 | J42: 72.70 | K42: 14
E43: 莫贵雅 | F43: 女 | G43: 壮族 | H43: 74.40 | I43: 69.40 | J43: 71.90 | K43: 15
E44: 莫艳萍 | F44: 女 | G44: 汉族 | H44: 73.00 | I44: 70.20 | J44: 71.60 | K44: 16
E45: 梁书苑 | F45: 女 | G45: 壮族 | H45: 71.00 | I45: 69.00 | J45: 70.00 | K45: 17
E46: 兰娅丽 | F46: 女 | G46: 壮族 | H46: 70.80 | I46: 68.00 | J46: 69.40 | K46: 18
E47: 黄农线 | F47: 女 | G47: 壮族 | H47: 67.00 | I47: 无 | J47: =H47*0.5 -> 33.50 | K47: 19
E48: 赖泊宇 | F48: 男 | G48: 汉族 | H48: 63.00 | I48: 无 | J48: =H48*0.5 -> 31.50 | K48: 20
E49: 潘福积 | F49: 女 | G49: 壮族 | H49: 66.40 | I49: 无 | J49: =H49*0.5 -> 33.20 | K49: 21
E50: 韦晓婷 | F50: 女 | G50: 壮族 | H50: 62.40 | I50: 无 | J50: =H50*0.5 -> 31.20 | K50: 22
E51: 杨桂玲 | F51: 女 | G51: 汉族 | H51: 61.00 | I51: 无 | J51: =H51*0.5 -> 30.50 | K51: 23
E52: 韦泽玲 | F52: 女 | G52: 汉族 | H52: 缺考 | I52: 无 | J52: 无 | K52: 24

Sheet Sheet1
A1: 麻彩音 | B1: 452623198409043022 | C1: 82.00 | D1: 1
A2: 梁雪妹 | B2: 452624199208070025 | C2: 79.00 | D2: 2
A3: 钟婉 | B3: 452427199211043165 | C3: 78.20 | D3: 3
A4: 黎燕群 | B4: 45048119900614182X | C4: 76.40 | D4: 4
A5: 黄彩菲 | B5: 452623198409043022 | C5: 74.60 | D5: 5
A6: 雷秋连 | B6: 452123198809205820 | C6: 74.40 | D6: 6
A7: 刘秋霞 | B7: 450923199210268768 | C7: 74.00 | D7: 7
A8: 何爱西 | B8: 452626199408094403 | C8: 73.60 | D8: 8
A9: 谢晓敏 | B9: 450122199605147725 | C9: 72.00 | D9: 9
A10: 石林川 | B10: 452731198906071820 | C10: 72.00 | D10: 9
A11: 蒙素华 | B11: 450122198607272525 | C11: 71.00 | D11: 11
A12: 农芳艳 | B12: 452132198806163027 | C12: 71.00 | D12: 11
A13: 卢军 | B13: 452226199312286046 | C13: 70.40 | D13: 13
A14: 徐苓珍 | B14: 450104198703090024 | C14: 70.00 | D14: 14
A15: 张秋露 | B15: 450923199210268768 | C15: 69.80 | D15: 15
A16: 梁芳媛 | B16: 450111199512073043 | C16: 69.80 | D16: 15
A17: 滕健 | B17: 420504199501145921 | C17: 69.00 | D17: 17
A18: 陈晓通 | B18: 450881199108180346 | C18: 66.60 | D18: 18
A21: 莫灵清 | B21: 45272419980803252X | C21: 79.60 | D21: 1
A22: 颜锦秀 | B22: 450922199106163169 | C22: 79.00 | D22: 2
A23: 阮海潜 | B23: 450922199807191672 | C23: 79.00 | D23: 2
A24: 欧虹辛 | B24: 450621199812280028 | C24: 78.00 | D24: 4
A25: 李兰 | B25: 511323199710104166 | C25: 77.20 | D25: 5
A26: 梁雨怡 | B26: 450422200004140220 | C26: 76.40 | D26: 6
A27: 陈秋明 | B27: 450127199909074846 | C27: 76.00 | D27: 7
A28: 梁子凌 | B28: 450923199011100348 | C28: 75.80 | D28: 8
A29: 刘秀枝 | B29: 452122200012135427 | C29: 75.40 | D29: 9
A30: 李玉群 | B30: 450127200008043925 | C30: 74.60 | D30: 10
A31: 梁冰 | B31: 450923199901125360 | C31: 74.40 | D31: 11
A32: 高爽 | B32: 211223199702283225 | C32: 73.60 | D32: 12
A33: 梁朝燊 | B33: 450981199809240255 | C33: 72.80 | D33: 13
A34: 黄丽葵 | B34: 452623199305203321 | C34: 72.40 | D34: 14
A35: 莫艳萍 | B35: 450521199411126120 | C35: 70.20 | D35: 15
A36: 莫贵雅 | B36: 452702199602090363 | C36: 69.40 | D36: 16
A37: 梁书苑 | B37: 450111199710234223 | C37: 69.00 | D37: 17
A38: 兰娅丽 | B38: 451281199212270569 | C38: 68.00 | D38: 18
